bitfinex/quotes_SOLUSD_20241223
["timestamp","ask_amount","ask_price","bid_price","bid_amount"]
[1734985070401,0.12549,188.45,188.31,22.17781476]
[1734985070722,0.12549,188.45,188.3,22.17781476]
[1734985071013,0.12549,188.45,188.29,22.17781476]
[1734985071219,0.267,188.47,188.33,22.17781476]
[1734985071522,0.12549,188.46,188.31,22.17781476]
[1734985071903,0.12549,188.46,188.33,22.17781476]
[1734985072098,0.267,188.47,188.33,22.17781476]
[1734985072303,4.39289812,188.49,188.34,22.17781476]
[1734985072497,0.12549,188.47,188.32,22.17781476]
[1734985072695,0.12549,188.47,188.31,22.17781476]
[1734985072895,23.902374,188.45,188.3,20.0]
[1734985073105,23.902374,188.45,188.29,22.17781476]
[1734985073313,23.902374,188.45,188.3,22.17781476]
[1734985075728,4.39289812,188.49,188.37,22.17781476]
[1734985075888,0.6669,188.49,188.37,22.17781476]
[1734985076292,0.6669,188.49,188.36,6.4071]
[1734985077226,0.12549,188.48,188.36,6.4071]
[1734985077517,20.0,188.45,188.36,6.4071]
[1734985077717,23.776884,188.44,188.36,6.4071]
[1734985079504,23.776884,188.48,188.36,6.4071]
[1734985079706,20.6669,188.49,188.36,6.4071]
[1734985079936,20.0,188.45,188.33,22.17781476]
[1734985080232,20.0,188.45,188.32,41.92901476]
[1734985080434,0.6669,188.49,188.33,22.17781476]
[1734985080604,0.12549,188.46,188.33,22.17781476]
[1734985081143,23.902374,188.46,188.33,22.17781476]
[1734985081914,23.776884,188.46,188.34,22.17781476]
[1734985082938,23.776884,188.46,188.36,22.17781476]
[1734985083121,0.6669,188.53,188.37,23.80021476]
[1734985084035,0.12549,188.5,188.37,23.80021476]
[1734985084220,0.12549,188.5,188.37,1.6224]
[1734985084539,30.12549,188.5,188.33,22.17781476]
[1734985084832,30.12549,188.48,188.32,8.0478]
[1734985085204,20.0,188.44,188.32,8.0478]
[1734985085545,20.0,188.44,188.31,22.17781476]
[1734985085546,0.12549,188.39,188.26,6.4175]
[1734985085719,23.902374,188.37,188.26,6.4175]
[1734985086039,23.902374,188.37,188.25,1.5712]
[1734985086420,23.902374,188.37,188.21,6.4175]
[1734985086741,23.902374,188.37,188.22,35.58560476]
[1734985086924,23.902374,188.37,188.24,22.17781476]
[1734985087124,23.776884,188.37,188.25,35.45751476]
[1734985087637,23.776884,188.37,188.25,13.2797]
[1734985088034,23.776884,188.37,188.25,35.45751476]
[1734985088414,23.776884,188.37,188.25,22.17781476]
[1734985088843,23.776884,188.37,188.26,20.0]
[1734985089140,23.776884,188.37,188.24,22.17781476]
[1734985089435,23.776884,188.37,188.26,20.0]
[1734985089942,0.12549,188.36,188.23,35.45881476]
[1734985090143,23.776884,188.37,188.24,0.12549]
[1734985090326,23.776884,188.37,188.24,22.17781476]
[1734985090851,0.12549,188.36,188.23,35.45881476]
[1734985091135,0.12549,188.36,188.21,6.4175]
[1734985091944,0.12549,188.36,188.21,28.59531476]
[1734985092150,0.12549,188.36,188.22,35.46011476]
[1734985092448,0.12549,188.36,188.22,13.2823]
[1734985092629,0.12549,188.36,188.21,6.4175]
[1734985093258,0.12549,188.33,188.21,6.4175]
[1734985093427,24.569274,188.3,188.17,6.0902]
[1734985094251,24.569274,188.3,188.17,28.26801476]
[1734985094459,23.776884,188.3,188.21,22.17781476]
[1734985094624,0.6669,188.35,188.23,22.17781476]
[1734985095227,0.6669,188.35,188.19,0.79655234]
[1734985095427,0.6669,188.35,188.21,22.17781476]
[1734985095727,0.6669,188.35,188.24,20.0]
[1734985095961,23.776884,188.34,188.23,20.0]
[1734985096124,23.776884,188.34,188.25,20.0]
[1734985096319,0.12549,188.33,188.2,35.46151476]
[1734985096743,0.12549,188.33,188.23,20.0]
[1734985096942,23.776884,188.34,188.23,20.0]
[1734985097556,0.6669,188.35,188.24,22.17781476]
[1734985097727,1.97357147,188.39,188.26,22.17781476]
[1734985098037,0.6669,188.39,188.27,22.17781476]
[1734985098235,0.6669,188.39,188.26,6.3326]
[1734985099222,23.776884,188.38,188.26,6.3326]
[1734985100939,0.12549,188.37,188.24,1.5635]
[1734985101158,23.902374,188.34,188.22,6.2441]
[1734985102263,0.6669,188.39,188.24,22.17781476]
[1734985102443,0.6669,188.39,188.25,22.17781476]
[1734985102640,0.6669,188.39,188.27,22.17781476]
[1734985103157,0.6669,188.39,188.26,22.97424102]
[1734985103347,0.12549,188.38,188.24,22.17781476]
[1734985103538,0.12549,188.38,188.26,20.0]
[1734985103863,1.43216147,188.38,188.26,20.0]
[1734985104089,23.776884,188.37,188.26,42.17781476]
[1734985104229,20.6669,188.39,188.26,42.97419045]
[1734985104431,0.6669,188.39,188.26,42.97419045]
[1734985105042,0.6669,188.39,188.26,20.0]
[1734985105432,0.6669,188.39,188.28,0.12549]
[1734985105664,0.6669,188.39,188.3,20.0]
[1734985106738,0.6669,188.39,188.28,0.12549]
[1734985107268,0.6669,188.39,188.27,36.25229532]
[1734985107435,0.6669,188.39,188.28,0.12549]
[1734985107969,0.6669,188.43,188.3,20.0]
[1734985108270,0.12549,188.4,188.26,13.2793]
[1734985108979,0.12549,188.38,188.26,13.2793]
[1734985109569,23.902374,188.38,188.26,13.2793]
[1734985111348,31.30667147,188.42,188.29,22.17781476]
[1734985111349,1.30667147,188.42,188.29,22.17781476]
[1734985111563,0.6669,188.43,188.3,0.79626638]
[1734985112270,0.6669,188.43,188.31,28.90570476]
[1734985112470,0.6669,188.48,188.33,22.30330476]
[1734985112669,0.6669,188.48,188.35,22.17781476]
[1734985112865,0.6669,188.48,188.34,20.7960196]
[1734985113653,0.6669,188.48,188.34,42.97383436]
[1734985113879,23.776884,188.47,188.34,42.97383436]
[1734985115277,23.776884,188.47,188.36,22.17781476]
[1734985115481,0.6669,188.48,188.38,22.17781476]
[1734985115650,0.6669,188.53,188.42,22.17781476]
[1734985115845,0.6669,188.53,188.43,22.17781476]
[1734985116059,0.6669,188.53,188.43,22.97348372]
[1734985116459,0.6669,188.53,188.43,0.79566896]
[1734985117280,0.6669,188.53,188.39,1.6275]
[1734985117281,23.776884,188.52,188.39,1.6275]
[1734985117459,23.776884,188.48,188.36,6.2359]
[1734985117654,20.0,188.49,188.39,22.17781476]
[1734985117850,20.0,188.49,188.4,22.17781476]
[1734985118252,20.0,188.49,188.41,22.97364228]
[1734985118872,20.0,188.49,188.41,0.79582752]
[1734985119100,23.776884,188.52,188.41,0.79582752]
[1734985119271,23.776884,188.52,188.4,22.17781476]
[1734985122781,23.776884,188.52,188.39,36.24334022]
[1734985122991,20.0,188.49,188.39,14.06552546]
[1734985124063,23.902374,188.55,188.4,22.17781476]
[1734985124278,0.12549,188.55,188.39,27.12954022]
[1734985124482,23.902374,188.53,188.39,27.12954022]
[1734985125158,20.0,188.5,188.39,27.12954022]
[1734985125385,23.776884,188.49,188.39,27.12954022]
[1734985125684,0.12549,188.53,188.4,14.65572384]
[1734985125873,23.902374,188.53,188.4,14.65572384]
[1734985126387,20.0,188.5,188.41,27.12874022]
[1734985127178,1.30667147,188.54,188.41,27.12874022]
[1734985127994,23.776884,188.53,188.41,27.12874022]
[1734985128202,20.0,188.5,188.41,27.12874022]
[1734985128506,20.0,188.5,188.41,13.85984022]
[1734985129072,20.0,188.5,188.4,13.85984022]
[1734985129581,20.0,188.5,188.41,13.85984022]
[1734985129787,20.0,188.5,188.4,14.65567683]
[1734985130429,1.30667147,188.54,188.44,13.85984022]
[1734985130706,0.6669,188.57,188.44,13.85984022]
[1734985131109,0.6669,188.57,188.46,13.85984022]
[1734985131817,0.6669,188.57,188.45,13.2656]
[1734985132221,1.97357147,188.57,188.45,13.2656]
[1734985132379,23.776884,188.56,188.44,15.50234022]
[1734985132584,20.0,188.53,188.44,15.50234022]
[1734985132879,20.0,188.53,188.42,14.06361388]
[1734985132880,20.0,188.53,188.42,27.9234541]
[1734985133212,23.776884,188.52,188.41,6.1049]
[1734985133394,20.0,188.49,188.41,6.1049]
[1734985134313,23.776884,188.52,188.42,13.85984022]
[1734985134727,23.776884,188.52,188.41,33.23314022]
[1734985134897,23.776884,188.52,188.41,6.1049]
[1734985135216,20.0,188.49,188.41,6.1049]
[1734985135583,20.0,188.49,188.39,13.85984022]
[1734985136015,23.776884,188.52,188.4,27.12944022]
[1734985136217,23.776884,188.52,188.4,13.2696]
[1734985136638,20.0,188.49,188.38,13.85984022]
[1734985137204,20.0,188.45,188.37,6.1049]
[1734985137417,20.0,188.45,188.32,6.6099]
[1734985137618,20.0,188.41,188.32,6.6099]
[1734985137927,20.0,188.37,188.28,13.278]
[1734985138137,23.776884,188.36,188.27,22.03884022]
[1734985138440,23.776884,188.36,188.27,6.6099]
[1734985138626,20.0,188.33,188.23,13.85984022]
[1734985138815,20.0,188.33,188.22,29.65661834]
[1734985138816,23.776884,188.32,188.22,29.65661834]
[1734985139131,23.776884,188.32,188.22,21.3722]
[1734985139816,23.776884,188.32,188.22,35.23204022]
[1734985140015,23.776884,188.32,188.23,13.85984022]
[1734985140628,20.0,188.33,188.24,13.85984022]
[1734985140807,20.0,188.34,188.26,13.85984022]
[1734985141011,20.0,188.34,188.25,13.85984022]
[1734985142221,23.776884,188.33,188.24,13.2809]
[1734985142535,23.776884,188.33,188.24,35.49316758]
[1734985142895,23.776884,188.33,188.25,22.21226758]
[1734985143099,20.0,188.34,188.25,22.21226758]
[1734985143446,0.9339,188.38,188.27,22.21226758]
[1734985143932,0.12549,188.36,188.2,13.2831]
[1734985144119,0.12549,188.34,188.18,22.21226758]
[1734985144303,0.12549,188.32,188.17,43.45676758]
[1734985144500,0.12549,188.32,188.15,30.50014511]
[1734985144698,0.39249,188.28,188.15,8.28787753]
[1734985144920,23.776884,188.2,188.15,8.28787753]
[1734985145203,23.776884,188.2,188.09,36.17049168]
[1734985145412,20.0,188.21,188.1,22.21226758]
[1734985145750,23.902374,188.26,188.1,22.21226758]
[1734985145914,20.0,188.23,188.11,22.21226758]
[1734985146122,23.776884,188.22,188.13,22.21226758]
[1734985147128,20.0,188.23,188.13,23.00929766]
[1734985147638,20.0,188.23,188.13,22.21226758]
[1734985148438,0.12549,188.22,188.11,13.29]
[1734985148642,23.902374,188.22,188.09,22.87939168]
[1734985148825,23.776884,188.22,188.11,22.21226758]
[1734985149023,23.776884,188.22,188.13,22.21226758]
[1734985149234,0.6669,188.27,188.13,22.21226758]
[1734985149440,23.776884,188.26,188.13,22.21226758]
[1734985149650,20.0,188.23,188.13,22.21226758]
[1734985150447,23.776884,188.22,188.12,22.21226758]
[1734985150647,23.776884,188.22,188.1,35.50306758]
[1734985150812,23.776884,188.22,188.1,13.2908]
[1734985150813,20.0,188.19,188.1,13.2908]
[1734985151457,20.0,188.19,188.1,35.50306758]
[1734985151944,20.0,188.19,188.1,13.2908]
[1734985152122,20.0,188.19,188.1,35.50306758]
[1734985152325,20.0,188.19,188.11,22.21226758]
[1734985153544,20.0,188.19,188.13,22.21226758]
[1734985153764,23.776884,188.22,188.14,22.21226758]
[1734985154059,0.6669,188.27,188.09,0.6671241]
[1734985154060,30.0,188.26,188.09,0.6671241]
[1734985154415,0.12549,188.25,188.09,0.6671241]
[1734985154619,0.12549,188.23,188.09,0.6671241]
[1734985155058,23.902374,188.2,188.09,0.6671241]
[1734985155221,23.776884,188.16,188.09,0.6671241]
[1734985155533,23.776884,188.26,188.11,22.21226758]
[1734985155734,23.776884,188.22,188.1,22.21226758]
[1734985156137,23.776884,188.22,188.11,22.21226758]
[1734985156823,23.776884,188.22,188.12,22.21226758]
[1734985157141,23.776884,188.22,188.11,22.21226758]
[1734985157553,23.776884,188.22,188.12,22.21226758]
[1734985158451,23.776884,188.22,188.13,22.21226758]
[1734985159152,0.6669,188.27,188.14,22.21226758]
[1734985159327,23.776884,188.26,188.14,22.21226758]
[1734985159522,20.0,188.23,188.14,22.21226758]
[1734985159755,20.0,188.23,188.11,0.92241697]
[1734985159756,20.0,188.23,188.16,22.21226758]
[1734985159938,0.6669,188.27,188.19,22.21226758]
[1734985160124,0.6669,188.27,188.18,22.21226758]
[1734985160321,0.6669,188.27,188.16,22.21226758]
[1734985160550,0.6669,188.27,188.15,35.49946758]
[1734985161057,0.12549,188.26,188.16,22.21226758]
[1734985161261,23.902374,188.26,188.15,35.49946758]
[1734985162535,23.776884,188.26,188.18,22.21226758]
[1734985162729,0.6669,188.27,188.19,22.21226758]
[1734985162924,0.6669,188.27,188.18,22.21226758]
[1734985163127,0.267,188.28,188.19,22.21226758]
[1734985163329,0.6669,188.31,188.22,22.21226758]
[1734985163559,0.267,188.32,188.24,22.21226758]
[1734985163863,0.267,188.32,188.22,22.21226758]
[1734985164244,0.267,188.32,188.21,13.88690691]
[1734985164667,0.12549,188.31,188.2,27.17020691]
[1734985164867,23.776884,188.29,188.19,13.88690691]
[1734985165040,23.776884,188.25,188.16,13.88690691]
[1734985165637,20.0,188.26,188.16,13.88690691]
[1734985165830,23.776884,188.25,188.16,13.88690691]
[1734985166252,23.776884,188.25,188.17,22.23071792]
[1734985166753,1.57367147,188.32,188.2,22.23071792]
[1734985166966,0.267,188.32,188.21,22.23071792]
[1734985168167,0.267,188.32,188.2,35.51421792]
[1734985168471,0.267,188.32,188.2,13.2835]
[1734985169264,0.267,188.32,188.21,22.23071792]
[1734985170266,20.0,188.3,188.21,22.23071792]
[1734985170563,0.267,188.32,188.23,22.23071792]
[1734985171267,0.9339,188.36,188.23,22.23071792]
[1734985171489,0.9339,188.36,188.27,22.23071792]
[1734985171707,0.6669,188.36,188.25,13.40509]
[1734985171860,0.6669,188.41,188.29,22.23071792]
[1734985172573,0.6669,188.41,188.3,22.23071792]
[1734985172945,0.6669,188.41,188.29,22.23071792]
[1734985173145,0.6669,188.41,188.32,22.23071792]
[1734985173562,0.6669,188.46,188.34,22.23071792]
[1734985173749,0.6669,188.46,188.36,22.23071792]
[1734985174070,0.6669,188.46,188.37,22.23071792]
[1734985174460,0.6669,188.46,188.28,13.2778]
[1734985174763,0.12549,188.45,188.3,22.23071792]
[1734985175070,23.902374,188.45,188.3,22.23071792]
[1734985175282,20.0,188.42,188.31,22.23071792]
[1734985175447,23.776884,188.41,188.3,22.23071792]
[1734985175848,23.776884,188.37,188.29,22.23071792]
[1734985176060,23.776884,188.37,188.27,29.85131792]
[1734985176269,23.776884,188.37,188.25,35.51081792]
[1734985176462,23.776884,188.37,188.24,22.23071792]
[1734985176463,23.776884,188.33,188.24,22.23071792]
[1734985176862,23.776884,188.33,188.25,22.23071792]
[1734985177059,23.776884,188.33,188.23,22.23071792]
[1734985177661,23.776884,188.35,188.26,22.23071792]
[1734985178073,0.267,188.37,188.29,22.23071792]
[1734985178249,20.0,188.35,188.28,22.23071792]
[1734985179667,20.0,188.35,188.27,22.23071792]
[1734985180476,20.0,188.35,188.28,22.23071792]
[1734985181069,23.776884,188.38,188.28,22.23071792]
[1734985181776,23.776884,188.38,188.31,22.23071792]
[1734985181971,23.776884,188.38,188.29,22.23071792]
[1734985183879,0.9339,188.45,188.33,22.23071792]
[1734985184081,0.9339,188.45,188.35,22.23071792]
[1734985184454,5.864477,188.45,188.35,22.23071792]
[1734985184872,5.864477,188.45,188.36,22.23071792]
[1734985185154,5.597477,188.45,188.36,22.23071792]
[1734985185575,5.597477,188.45,188.38,22.23071792]
[1734985185797,4.930577,188.45,188.4,22.23071792]
[1734985186151,4.930577,188.45,188.41,13.85825273]
[1734985186746,0.9339,188.5,188.42,13.85825273]
[1734985186894,0.267,188.56,188.43,13.85825273]
[1734985187098,0.267,188.56,188.44,13.85825273]
[1734985187260,0.267,188.56,188.45,13.85825273]
[1734985187457,2.124868,188.55,188.45,13.85825273]
[1734985188266,23.776884,188.54,188.45,22.16439111]
[1734985188467,23.776884,188.54,188.44,22.16439111]
[1734985188995,20.0,188.51,188.41,22.16439111]
[1734985189494,23.776884,188.5,188.42,22.16439111]
[1734985190384,23.776884,188.5,188.43,22.16439111]
[1734985191106,20.0,188.51,188.43,22.16439111]
[1734985191275,23.776884,188.54,188.43,22.9601475]
[1734985191598,2.124868,188.55,188.47,22.16439111]
[1734985191806,2.124868,188.55,188.48,22.95998269]
[1734985192039,2.124868,188.55,188.5,22.16439111]
[1734985192169,0.9339,188.61,188.5,22.16439111]
[1734985192463,0.9339,188.61,188.49,22.16439111]
[1734985193364,23.776884,188.6,188.47,35.42849111]
[1734985193565,23.776884,188.56,188.46,22.16439111]
[1734985195515,23.776884,188.56,188.45,22.16439111]
[1734985196105,23.776884,188.56,188.43,35.43119111]
[1734985196106,23.776884,188.52,188.43,35.43119111]
[1734985196611,23.776884,188.52,188.41,23.76629111]
[1734985196767,23.776884,188.52,188.41,1.6019]
[1734985196974,23.776884,188.52,188.42,22.16439111]
[1734985197281,23.776884,188.52,188.44,22.16439111]
[1734985198381,20.0,188.59,188.45,22.16439111]
[1734985198580,20.0,188.55,188.45,22.16439111]
[1734985198779,23.776884,188.54,188.45,22.16439111]
[1734985200309,20.0,188.63,188.49,22.16439111]
[1734985200674,20.0,188.63,188.48,22.16439111]
[1734985200875,1.30667147,188.64,188.49,22.28988111]
[1734985201312,1.30667147,188.64,188.5,22.16439111]
[1734985202217,23.776884,188.6,188.51,22.16439111]
[1734985202414,23.776884,188.6,188.52,22.16439111]
[1734985202782,23.776884,188.6,188.53,22.16439111]
[1734985202983,5.892325,188.61,188.54,22.16439111]
[1734985203308,49.25561546,188.91,188.6,22.16439111]
[1734985203309,0.6669,188.7,188.6,22.16439111]
[1734985203475,0.6669,188.7,188.61,22.16439111]
[1734985203671,5.892325,188.66,188.61,22.16439111]
[1734985203906,0.6669,188.7,188.6,22.16439111]
[1734985204122,6.559225,188.7,188.6,22.16439111]
[1734985204488,6.559225,188.7,188.61,22.16439111]
[1734985204696,5.892325,188.7,188.62,22.16439111]
[1734985206100,23.776884,188.69,188.6,22.16439111]
[1734985206421,23.776884,188.69,188.59,13.2561]
[1734985206621,23.276884,188.69,188.59,13.2561]
[1734985207720,23.276884,188.69,188.6,22.16439111]
[1734985208216,23.276884,188.69,188.58,13.83370294]
[1734985208401,20.0,188.66,188.56,20.00950294]
[1734985208800,23.776884,188.65,188.56,13.83370294]
[1734985209318,23.776884,188.63,188.54,13.83370294]
[1734985209989,20.0,188.67,188.56,13.83370294]
[1734985210193,23.776884,188.66,188.58,22.13535826]
[1734985210428,20.0,188.67,188.58,22.13535826]
[1734985210927,0.6669,188.69,188.59,22.13535826]
[1734985211293,0.1669,188.69,188.59,22.13535826]
[1734985211787,0.1669,188.69,188.58,13.2563]
[1734985211788,0.1669,188.69,188.6,22.13535826]
[1734985212293,5.892325,188.7,188.62,22.13535826]
[1734985212492,5.892325,188.7,188.64,22.13535826]
[1734985212893,5.892325,188.7,188.63,22.13535826]
[1734985213627,5.892325,188.7,188.62,7.9157]
[1734985214101,5.892325,188.7,188.6,22.13535826]
[1734985214300,23.776884,188.69,188.57,7.6232]
[1734985214496,23.776884,188.69,188.57,29.75855826]
[1734985214909,23.776884,188.69,188.58,22.13535826]
[1734985215110,5.892325,188.7,188.6,22.13535826]
[1734985215111,20.0,188.67,188.6,22.13535826]
[1734985215324,5.892325,188.7,188.6,22.13535826]
[1734985215637,20.0,188.66,188.57,29.75855826]
[1734985215794,20.0,188.66,188.57,22.13535826]
[1734985216431,20.0,188.66,188.58,22.13535826]
[1734985216632,20.0,188.66,188.6,22.13535826]
[1734985217014,20.0,188.66,188.59,22.13535826]
[1734985218801,5.892325,188.7,188.61,22.13535826]
[1734985219823,5.892325,188.7,188.61,35.38965826]
[1734985220227,5.892325,188.7,188.63,22.13535826]
[1734985220944,5.892325,188.7,188.61,22.13535826]
[1734985221122,0.12549,188.71,188.59,22.13535826]
[1734985221296,0.12549,188.71,188.61,22.13535826]
[1734985221942,20.0,188.69,188.61,22.13535826]
[1734985222941,0.12549,188.67,188.57,22.13535826]
[1734985223102,0.12549,188.67,188.55,13.259]
[1734985223103,23.776884,188.64,188.55,22.13535826]
[1734985223945,0.267,188.66,188.57,22.13535826]
[1734985224323,0.267,188.66,188.59,22.13535826]
[1734985224520,20.0,188.68,188.59,22.13535826]
[1734985225040,20.0,188.68,188.61,22.13535826]
[1734985226119,0.12549,188.7,188.61,22.13535826]
[1734985226318,20.0,188.68,188.61,22.13535826]
[1734985228449,20.0,188.68,188.59,22.13535826]
[1734985229924,23.902374,188.67,188.59,22.13535826]
[1734985230241,23.902374,188.67,188.57,35.39285826]
[1734985230706,23.776884,188.63,188.54,35.39485826]
[1734985230907,23.902374,188.67,188.54,35.39485826]
[1734985231132,23.776884,188.63,188.54,35.39485826]
[1734985231339,0.1669,188.62,188.51,35.39695826]
[1734985231522,20.0,188.6,188.51,13.2616]
[1734985231716,23.902374,188.59,188.48,22.13535826]
[1734985232333,0.4339,188.62,188.53,22.13535826]
[1734985232716,0.12549,188.61,188.47,13.264]
[1734985232922,0.12549,188.57,188.47,13.264]
[1734985233118,20.0,188.54,188.43,22.13535826]
[1734985233442,20.0,188.54,188.45,22.13535826]
[1734985233618,23.902374,188.57,188.48,22.13535826]
[1734985233938,23.902374,188.57,188.47,22.13535826]
[1734985234115,23.776884,188.57,188.47,22.13535826]
[1734985234308,23.776884,188.57,188.48,22.13535826]
[1734985234717,23.776884,188.57,188.47,22.13535826]
[1734985235032,23.776884,188.57,188.49,22.13535826]
[1734985235519,23.776884,188.57,188.48,22.13535826]
[1734985235724,23.776884,188.53,188.44,22.13535826]
[1734985236028,23.776884,188.53,188.46,22.13535826]
[1734985238148,0.12549,188.56,188.41,14.06400693]
[1734985238354,20.0,188.58,188.46,22.13535826]
[1734985238550,23.902374,188.57,188.46,22.13535826]
[1734985238853,24.169374,188.53,188.43,22.13535826]
[1734985239223,24.169374,188.53,188.44,22.13535826]
[1734985239424,0.267,188.53,188.46,22.13535826]
[1734985240322,0.1669,188.56,188.46,22.13535826]
[1734985240526,23.776884,188.53,188.44,22.13535826]
[1734985241019,23.776884,188.53,188.43,22.13535826]
[1734985241609,0.12549,188.52,188.42,22.13535826]
[1734985241814,20.0,188.5,188.42,22.13535826]
[1734985242214,20.0,188.5,188.42,13.85770033]
[1734985242416,23.776884,188.49,188.4,27.12730033]
[1734985242615,23.776884,188.49,188.39,13.85770033]
[1734985242850,20.0,188.46,188.37,27.12910033]
[1734985243766,23.776884,188.45,188.37,13.2714]
[1734985243970,0.12549,188.44,188.35,13.85770033]
[1734985244147,20.0,188.42,188.34,27.13120033]
[1734985244475,23.776884,188.41,188.32,13.85770033]
[1734985244683,23.776884,188.41,188.31,27.13360033]
[1734985245188,20.0,188.38,188.31,13.85770033]
[1734985245678,20.1669,188.38,188.29,13.85770033]
[1734985245983,23.776884,188.37,188.28,27.13570033]
[1734985246181,23.776884,188.37,188.29,22.20498272]
[1734985246384,23.776884,188.37,188.3,22.20498272]
[1734985246948,23.776884,188.37,188.29,22.20498272]
[1734985248787,20.0,188.34,188.26,22.20498272]
[1734985248997,23.776884,188.33,188.24,35.48548272]
[1734985249352,23.776884,188.33,188.24,13.2805]
[1734985249878,23.776884,188.33,188.24,35.48548272]
[1734985250076,20.0,188.34,188.25,22.20498272]
[1734985250268,23.943784,188.38,188.26,22.20498272]
[1734985250469,20.0,188.35,188.26,22.20498272]
[1734985250687,0.1669,188.38,188.29,22.20498272]
[1734985251609,0.1669,188.38,188.28,22.20498272]
[1734985252582,0.1669,188.38,188.3,22.20498272]
[1734985253010,0.4339,188.43,188.33,22.20498272]
[1734985253383,0.12549,188.42,188.32,22.20498272]
[1734985253688,0.12549,188.42,188.29,22.20498272]
[1734985253889,0.12549,188.42,188.3,22.20498272]
[1734985254341,20.0,188.37,188.3,22.20498272]
[1734985254496,20.0,188.37,188.29,22.20498272]
[1734985254810,20.0,188.37,188.3,22.20498272]
[1734985255107,23.776884,188.4,188.3,22.20498272]
[1734985255402,0.12549,188.39,188.3,22.20498272]
[1734985259225,0.4339,188.43,188.32,22.20498272]
[1734985259428,20.4339,188.43,188.3,22.20498272]
[1734985259634,0.12549,188.4,188.29,22.20498272]
[1734985260107,0.12549,188.38,188.27,22.20498272]
[1734985260308,0.12549,188.38,188.26,22.20498272]
[1734985260614,23.902374,188.38,188.27,22.20498272]
[1734985260807,23.902374,188.38,188.26,22.20498272]
[1734985261296,20.0,188.35,188.26,22.20498272]
[1734985261497,24.069274,188.34,188.23,22.20498272]
[1734985261693,24.336274,188.34,188.21,22.20498272]
[1734985261927,20.0,188.31,188.21,22.20498272]
[1734985262228,0.12549,188.3,188.2,22.20498272]
[1734985262427,23.902374,188.3,188.19,22.20498272]
[1734985262635,20.0,188.27,188.18,35.48948272]
[1734985262812,20.0,188.27,188.19,22.20498272]
[1734985263529,0.4339,188.34,188.22,22.20498272]
[1734985263830,0.4339,188.34,188.2,13.283]
[1734985263831,23.776884,188.31,188.21,22.20498272]
[1734985264133,23.776884,188.31,188.22,22.20498272]
[1734985264511,23.776884,188.31,188.21,22.20498272]
[1734985265139,0.4339,188.34,188.25,22.20498272]
[1734985265315,0.1669,188.38,188.28,22.20498272]
[1734985265517,0.1669,188.38,188.29,22.20498272]
[1734985265719,0.12549,188.37,188.27,22.20498272]
[1734985266205,0.1669,188.38,188.27,22.20498272]
[1734985266409,0.1669,188.38,188.28,22.20498272]
[1734985266706,20.0,188.36,188.28,22.20498272]
[1734985266927,0.1669,188.38,188.25,13.2795]
[1734985267095,0.1669,188.38,188.3,22.20498272]
[1734985267300,0.1669,188.38,188.29,22.20498272]
[1734985268003,0.12549,188.37,188.22,13.2822]
[1734985268303,0.1669,188.38,188.1,26.5805]
[1734985268304,23.902374,188.34,188.19,35.48918272]
[1734985268526,23.902374,188.3,188.19,35.48918272]
[1734985268724,20.0,188.27,188.17,22.20498272]
[1734985269055,20.0,188.23,188.13,22.20498272]
[1734985269253,20.0,188.23,188.13,13.2885]
[1734985269404,20.0,188.23,188.13,35.49348272]
[1734985269605,20.0,188.23,188.12,22.20498272]
[1734985269817,0.12549,188.21,188.1,35.49568272]
[1734985270114,23.776884,188.22,188.12,22.20498272]
[1734985270322,20.0,188.28,188.15,22.20498272]
[1734985270530,23.902374,188.27,188.15,22.20498272]
[1734985270731,23.776884,188.27,188.18,22.20498272]
[1734985270923,23.776884,188.27,188.19,22.20498272]
[1734985271310,23.776884,188.27,188.18,22.20498272]
[1734985273250,23.776884,188.27,188.17,22.20498272]
[1734985273745,20.0,188.24,188.14,22.20498272]
[1734985274111,23.902374,188.23,188.14,22.20498272]
[1734985275106,0.1669,188.29,188.17,22.20498272]